[Event "NK 2022"]
[Site "Groningen, Netherlands"]
[Date "2022.12.22"]
[Round "2.4"]
[White "Van Foreest, Lucas"]
[Black "Ernst, Sipke"]
[Result "1/2-1/2"]
[TimeControl "40/90; 30 minutes + increment 30 seconds from start"]
[WhiteTitle "GM"]
[BlackTitle "GM"]
[WhiteFideId "1039792"]
[BlackFideId "1004689"]
[WhiteElo "2577"]
[BlackElo "2512"]

1. d4 {[%clk 01:30:58]} {[%emt 00:00:02]} Nf6 {[%clk 01:30:55]} {[%emt
00:00:05]} 2. c4 {[%clk 01:31:23]} {[%emt 00:00:05]} e6 {[%clk 01:31:23]}
{[%emt 00:00:03]} 3. g3 {[%clk 01:31:47]} {[%emt 00:00:05]} c5 {[%clk
01:29:34]} {[%emt 00:02:19]} 4. d5 {[%clk 01:31:35]} {[%emt 00:00:43]} exd5
{[%clk 01:30:00]} {[%emt 00:00:04]} 5. cxd5 {[%clk 01:31:44]} {[%emt 00:00:20]}
d6 {[%clk 01:30:26]} {[%emt 00:00:04]} 6. Nc3 {[%clk 01:32:10]} {[%emt
00:00:05]} g6 {[%clk 01:30:53]} {[%emt 00:00:03]} 7. Bg2 {[%clk 01:32:34]}
{[%emt 00:00:06]} Bg7 {[%clk 01:31:20]} {[%emt 00:00:03]} 8. Nf3 {[%clk
01:33:01]} {[%emt 00:00:03]} O-O {[%clk 01:31:46]} {[%emt 00:00:05]} 9. O-O
{[%clk 01:33:29]} {[%emt 00:00:02]} Re8 {[%clk 01:31:10]} {[%emt 00:01:06]} 10.
Bf4 {[%clk 01:33:29]} {[%emt 00:00:29]} Nh5 {[%clk 01:31:30]} {[%emt 00:00:10]}
11. Bg5 {[%clk 01:33:16]} {[%emt 00:00:43]} Qd7 {[%clk 01:31:04]} {[%emt
00:00:56]} 12. a4 {[%clk 01:28:59]} {[%emt 00:04:48]} Na6 {[%clk 01:31:31]}
{[%emt 00:00:03]} 13. e4 {[%clk 01:25:05]} {[%emt 00:04:24]} Nb4 {[%clk
01:23:03]} {[%emt 00:08:58]} 14. Nd2 {[%clk 01:25:25]} {[%emt 00:00:10]} b6
{[%clk 01:14:49]} {[%emt 00:08:44]} 15. Nc4 {[%clk 01:25:39]} {[%emt 00:00:15]}
Ba6 {[%clk 01:13:02]} {[%emt 00:02:18]} 16. Nb5 {[%clk 01:23:42]} {[%emt
00:02:27]} Bxb5 {[%clk 01:09:20]} {[%emt 00:04:12]} 17. axb5 {[%clk 01:23:52]}
{[%emt 00:00:19]} Bf8 {[%clk 01:02:28]} {[%emt 00:07:23]} 18. f4 {[%clk
01:22:21]} {[%emt 00:02:01]} Qxb5 {[%clk 00:57:45]} {[%emt 00:05:14]} 19. b3
{[%clk 01:22:47]} {[%emt 00:00:03]} Qd7 {[%clk 00:52:53]} {[%emt 00:05:21]} 20.
g4 {[%clk 01:18:43]} {[%emt 00:04:34]} Ng7 {[%clk 00:47:34]} {[%emt 00:05:49]}
21. f5 {[%clk 01:17:34]} {[%emt 00:01:40]} b5 {[%clk 00:45:12]} {[%emt
00:02:52]} 22. Ne3 {[%clk 01:17:17]} {[%emt 00:00:46]} Rec8 {[%clk 00:33:44]}
{[%emt 00:11:58]} 23. f6 {[%clk 01:09:35]} {[%emt 00:08:13]} Ne8 {[%clk
00:32:43]} {[%emt 00:01:31]} 24. Qd2 {[%clk 01:09:37]} {[%emt 00:00:28]} a5
{[%clk 00:30:09]} {[%emt 00:03:04]} 25. Nf5 {[%clk 01:09:51]} {[%emt 00:00:16]}
gxf5 {[%clk 00:22:59]} {[%emt 00:07:40]} 26. Rxf5 {[%clk 01:09:57]} {[%emt
00:00:24]} Kh8 {[%clk 00:20:14]} {[%emt 00:03:14]} 27. Raf1 {[%clk 01:07:26]}
{[%emt 00:03:02]} c4 {[%clk 00:15:56]} {[%emt 00:04:48]} 28. Bh6 {[%clk
01:01:11]} {[%emt 00:06:45]} Nxf6 {[%clk 00:16:22]} {[%emt 00:00:04]} 29. Rxf6
{[%clk 00:55:51]} {[%emt 00:05:51]} Bxh6 {[%clk 00:12:20]} {[%emt 00:04:32]} 30.
Qxh6 {[%clk 00:52:31]} {[%emt 00:03:49]} Qxg4 {[%clk 00:11:53]} {[%emt
00:00:57]} 31. Rxf7 {[%clk 00:50:25]} {[%emt 00:02:35]} Qg6 {[%clk 00:12:19]}
{[%emt 00:00:05]} 32. Rf8+ {[%clk 00:26:15]} {[%emt 00:24:40]} Rxf8 {[%clk
00:12:45]} {[%emt 00:00:04]} 33. Rxf8+ {[%clk 00:26:22]} {[%emt 00:00:23]} Rxf8
{[%clk 00:13:12]} {[%emt 00:00:02]} 34. Qxf8+ {[%clk 00:26:47]} {[%emt
00:00:05]} Qg8 {[%clk 00:13:39]} {[%emt 00:00:04]} 35. Qxd6 {[%clk 00:26:36]}
{[%emt 00:00:41]} cxb3 {[%clk 00:11:47]} {[%emt 00:02:22]} 36. Qf6+ {[%clk
00:24:06]} {[%emt 00:02:59]} Qg7 {[%clk 00:12:12]} {[%emt 00:00:06]} 37. Qd8+
{[%clk 00:24:31]} {[%emt 00:00:04]} Qg8 {[%clk 00:12:39]} {[%emt 00:00:04]} 38.
Qf6+ {[%clk 00:22:30]} {[%emt 00:02:32]} Qg7 {[%clk 00:13:02]} {[%emt
00:00:06]} 39. Qd8+ {[%clk 00:22:30]} {[%emt 00:00:30]} Qg8 {[%clk 00:13:26]}
{[%emt 00:00:05]} 40. Qf6+ {[%clk 00:22:00]} {[%emt 00:00:21]} 1/2-1/2

[Event "NK 2022"]
[Site "Groningen, Netherlands"]
[Date "2022.12.22"]
[Round "2.5"]
[White "Swinkels, Robin"]
[Black "Reinderman, Dimitri"]
[Result "0-1"]
[TimeControl "40/90; 30 minutes + increment 30 seconds from start"]
[WhiteTitle "GM"]
[BlackTitle "GM"]
[WhiteFideId "1010824"]
[BlackFideId "1001302"]
[WhiteElo "2514"]
[BlackElo "2575"]

1. d4 {[%clk 01:30:58]} {[%emt 00:00:01]} Nf6 {[%clk 01:30:54]} {[%emt
00:00:06]} 2. c4 {[%clk 01:31:20]} {[%emt 00:00:08]} c5 {[%clk 01:31:21]}
{[%emt 00:00:04]} 3. d5 {[%clk 01:31:44]} {[%emt 00:00:06]} e6 {[%clk
01:31:47]} {[%emt 00:00:04]} 4. Nc3 {[%clk 01:31:57]} {[%emt 00:00:15]} exd5
{[%clk 01:32:13]} {[%emt 00:00:05]} 5. cxd5 {[%clk 01:32:02]} {[%emt 00:00:25]}
d6 {[%clk 01:32:38]} {[%emt 00:00:06]} 6. g3 {[%clk 01:28:25]} {[%emt
00:04:07]} g6 {[%clk 01:32:53]} {[%emt 00:00:15]} 7. Bg2 {[%clk 01:28:51]}
{[%emt 00:00:03]} Bg7 {[%clk 01:33:14]} {[%emt 00:00:09]} 8. Nf3 {[%clk
01:29:17]} {[%emt 00:00:03]} O-O {[%clk 01:33:29]} {[%emt 00:00:16]} 9. O-O
{[%clk 01:29:36]} {[%emt 00:00:10]} a6 {[%clk 01:33:33]} {[%emt 00:00:27]} 10.
a4 {[%clk 01:29:54]} {[%emt 00:00:12]} Nbd7 {[%clk 01:33:39]} {[%emt 00:00:24]}
11. Bf4 {[%clk 01:26:29]} {[%emt 00:03:55]} Qc7 {[%clk 01:28:51]} {[%emt
00:05:19]} 12. Qc2 {[%clk 01:15:07]} {[%emt 00:11:52]} Rb8 {[%clk 01:19:27]}
{[%emt 00:09:54]} 13. a5 {[%clk 01:05:11]} {[%emt 00:10:26]} Nh5 {[%clk
01:18:18]} {[%emt 00:01:38]} 14. Bg5 {[%clk 01:01:35]} {[%emt 00:04:06]} b5
{[%clk 01:14:19]} {[%emt 00:04:29]} 15. axb6 {[%clk 01:01:46]} {[%emt
00:00:19]} Rxb6 {[%clk 01:14:28]} {[%emt 00:00:21]} 16. Ra2 {[%clk 00:54:59]}
{[%emt 00:07:17]} Ne5 {[%clk 01:12:36]} {[%emt 00:02:22]} 17. Nxe5 {[%clk
00:50:14]} {[%emt 00:05:14]} Bxe5 {[%clk 01:12:40]} {[%emt 00:00:26]} 18. Nb1
{[%clk 00:48:30]} {[%emt 00:02:14]} Bg7 {[%clk 00:52:58]} {[%emt 00:20:13]} 19.
Nd2 {[%clk 00:46:26]} {[%emt 00:02:34]} h6 {[%clk 00:51:40]} {[%emt 00:01:48]}
20. Be3 {[%clk 00:46:32]} {[%emt 00:00:23]} f5 {[%clk 00:51:43]} {[%emt
00:00:27]} 21. Nc4 {[%clk 00:45:57]} {[%emt 00:01:05]} Rb5 {[%clk 00:51:44]}
{[%emt 00:00:30]} 22. Bd2 {[%clk 00:42:35]} {[%emt 00:03:52]} g5 {[%clk
00:49:04]} {[%emt 00:03:10]} 23. Bc3 {[%clk 00:42:26]} {[%emt 00:00:39]} Bxc3
{[%clk 00:44:51]} {[%emt 00:04:43]} 24. bxc3 {[%clk 00:42:45]} {[%emt
00:00:11]} Nf6 {[%clk 00:45:02]} {[%emt 00:00:18]} 25. Rd1 {[%clk 00:29:29]}
{[%emt 00:13:46]} Qe7 {[%clk 00:40:40]} {[%emt 00:04:53]} 26. Bh3 {[%clk
00:26:14]} {[%emt 00:03:45]} g4 {[%clk 00:36:41]} {[%emt 00:04:29]} 27. Bg2
{[%clk 00:26:22]} {[%emt 00:00:21]} Nd7 {[%clk 00:35:44]} {[%emt 00:01:27]} 28.
Qd2 {[%clk 00:18:48]} {[%emt 00:08:04]} Kg7 {[%clk 00:29:11]} {[%emt 00:07:04]}
29. Qf4 {[%clk 00:14:36]} {[%emt 00:04:42]} Rf6 {[%clk 00:25:01]} {[%emt
00:04:39]} 30. e4 {[%clk 00:14:17]} {[%emt 00:00:49]} Nb6 {[%clk 00:19:34]}
{[%emt 00:05:57]} 31. e5 {[%clk 00:12:19]} {[%emt 00:02:28]} dxe5 {[%clk
00:19:32]} {[%emt 00:00:32]} 32. Nxe5 {[%clk 00:12:41]} {[%emt 00:00:08]} Qd6
{[%clk 00:19:25]} {[%emt 00:00:38]} 33. Re2 {[%clk 00:08:35]} {[%emt 00:04:35]}
a5 {[%clk 00:12:51]} {[%emt 00:07:05]} 34. Qc1 {[%clk 00:05:13]} {[%emt
00:03:52]} a4 {[%clk 00:10:24]} {[%emt 00:02:57]} 35. Nc6 {[%clk 00:05:12]}
{[%emt 00:00:30]} c4 {[%clk 00:08:28]} {[%emt 00:02:26]} 36. Re7+ {[%clk
00:01:42]} {[%emt 00:04:00]} Rf7 {[%clk 00:08:16]} {[%emt 00:00:42]} 37. Na7
{[%clk 00:01:12]} {[%emt 00:01:00]} Qxe7 {[%clk 00:05:01]} {[%emt 00:03:44]} 38.
Nxb5 {[%clk 00:01:40]} {[%emt 00:00:03]} Qc5 {[%clk 00:05:22]} {[%emt
00:00:10]} 39. Qb2 {[%clk 00:01:26]} {[%emt 00:00:44]} Bd7 {[%clk 00:02:52]}
{[%emt 00:03:00]} 40. Na3 {[%clk 00:01:50]} {[%emt 00:00:06]} Re7 {[%clk
00:01:01]} {[%emt 00:02:21]} 41. Qb4 {[%clk 00:23:02]} {[%emt 00:09:18]} Qxb4
{[%clk 00:28:24]} {[%emt 00:03:06]} 42. cxb4 {[%clk 00:23:30]} {[%emt
00:00:02]} Re8 {[%clk 00:28:09]} {[%emt 00:00:45]} 43. d6 {[%clk 00:18:02]}
{[%emt 00:05:58]} Kf6 {[%clk 00:26:16]} {[%emt 00:02:23]} 44. b5 {[%clk
00:16:54]} {[%emt 00:01:39]} Ke5 {[%clk 00:24:42]} {[%emt 00:02:04]} 45. h3
{[%clk 00:09:37]} {[%emt 00:07:46]} Rd8 {[%clk 00:19:51]} {[%emt 00:05:21]} 46.
hxg4 {[%clk 00:07:51]} {[%emt 00:02:17]} fxg4 {[%clk 00:20:15]} {[%emt
00:00:06]} 47. Nc2 {[%emt 00:05:53]} Bf5 {[%clk 00:14:53]} 48. Ne3 {[%clk
00:03:45]} {[%emt 00:05:04]} Be6 {[%clk 00:15:10]} {[%emt 00:00:12]} 49. Bf1
{[%clk 00:02:42]} {[%emt 00:01:33]} Rxd6 {[%clk 00:14:38]} {[%emt 00:01:03]} 50.
Rc1 {[%clk 00:03:08]} {[%emt 00:00:04]} Kd4 {[%clk 00:12:47]} {[%emt 00:02:22]}
51. Be2 {[%clk 00:03:32]} {[%emt 00:00:05]} h5 {[%clk 00:12:36]} {[%emt
00:00:41]} 52. Nd1 {[%clk 00:03:35]} {[%emt 00:00:27]} Kc5 {[%clk 00:12:07]}
{[%emt 00:00:58]} 53. Nc3 {[%clk 00:04:02]} {[%emt 00:00:03]} Rd4 {[%clk
00:10:11]} {[%emt 00:02:26]} 54. Kf1 {[%clk 00:02:38]} {[%emt 00:01:54]} Kb4
{[%clk 00:07:52]} {[%emt 00:02:50]} 55. Ke1 {[%clk 00:02:53]} {[%emt 00:00:15]}
Bf5 {[%clk 00:07:37]} {[%emt 00:00:45]} 56. Bd1 {[%clk 00:02:50]} {[%emt
00:00:33]} Ka3 {[%clk 00:04:25]} {[%emt 00:03:42]} 57. Nxa4 {[%clk 00:00:53]}
{[%emt 00:02:27]} Rxd1+ {[%clk 00:04:13]} {[%emt 00:00:42]} 58. Rxd1 {[%clk
00:01:11]} {[%emt 00:00:12]} Kxa4 {[%clk 00:04:08]} {[%emt 00:00:35]} 59. Rd6
{[%clk 00:01:38]} {[%emt 00:00:03]} Kxb5 {[%clk 00:04:06]} {[%emt 00:00:31]} 60.
Rh6 {[%clk 00:02:05]} {[%emt 00:00:03]} Be4 {[%clk 00:04:21]} {[%emt 00:00:16]}
61. Rxh5+ {[%clk 00:02:33]} {[%emt 00:00:03]} Kb4 {[%clk 00:04:25]} {[%emt
00:00:26]} 62. Rg5 {[%clk 00:02:26]} {[%emt 00:00:37]} Bf3 {[%clk 00:04:37]}
{[%emt 00:00:18]} 63. Kd2 {[%clk 00:02:53]} {[%emt 00:00:03]} Nd5 {[%clk
00:03:56]} {[%emt 00:01:11]} 64. Rg8 {[%clk 00:03:06]} {[%emt 00:00:16]} Kb3
{[%clk 00:04:05]} {[%emt 00:00:21]} 65. Rb8+ {[%clk 00:02:19]} {[%emt
00:01:17]} Nb4 {[%clk 00:04:29]} {[%emt 00:00:06]} 66. Rc8 {[%clk 00:02:47]}
{[%emt 00:00:03]} Bc6 {[%clk 00:04:46]} {[%emt 00:00:12]} 67. Rb8 {[%clk
00:01:54]} {[%emt 00:01:23]} c3+ {[%clk 00:04:55]} {[%emt 00:00:22]} 68. Kc1
{[%clk 00:02:15]} {[%emt 00:00:08]} Kc4 {[%clk 00:04:00]} {[%emt 00:01:25]} 69.
Rc8 {[%clk 00:02:44]} {[%emt 00:00:02]} Kd3 {[%clk 00:03:56]} {[%emt 00:00:34]}
70. Rd8+ {[%clk 00:03:09]} {[%emt 00:00:05]} Bd5 {[%clk 00:03:59]} {[%emt
00:00:26]} 71. Rc8 {[%clk 00:02:30]} {[%emt 00:01:08]} Na2+ {[%clk 00:03:47]}
{[%emt 00:00:42]} 72. Kb1 {[%clk 00:02:38]} {[%emt 00:00:23]} Kd2 {[%clk
00:03:51]} {[%emt 00:00:26]} 0-1

[Event "NK 2022"]
[Site "Groningen, Netherlands"]
[Date "2022.12.22"]
[Round "2.6"]
[White "Tiviakov, Sergei"]
[Black "Beerdsen, Thomas"]
[Result "1/2-1/2"]
[TimeControl "40/90; 30 minutes + increment 30 seconds from start"]
[WhiteTitle "GM"]
[BlackTitle "IM"]
[WhiteFideId "1008013"]
[BlackFideId "1030108"]
[WhiteElo "2562"]
[BlackElo "2521"]

1. e4 {[%clk 01:30:57]} {[%emt 00:00:02]} c5 {[%clk 01:30:54]} {[%emt
00:00:06]} 2. Nc3 {[%clk 01:31:20]} {[%emt 00:00:07]} d6 {[%clk 01:30:57]}
{[%emt 00:00:26]} 3. Nge2 {[%clk 01:31:44]} {[%emt 00:00:07]} Nf6 {[%clk
01:31:07]} {[%emt 00:00:19]} 4. g3 {[%clk 01:32:05]} {[%emt 00:00:09]} g6
{[%clk 01:30:47]} {[%emt 00:00:49]} 5. d4 {[%clk 01:32:21]} {[%emt 00:00:15]}
cxd4 {[%clk 01:31:11]} {[%emt 00:00:06]} 6. Nxd4 {[%clk 01:32:47]} {[%emt
00:00:04]} Bg7 {[%clk 01:31:34]} {[%emt 00:00:07]} 7. Bg2 {[%clk 01:33:10]}
{[%emt 00:00:08]} O-O {[%clk 01:31:56]} {[%emt 00:00:08]} 8. O-O {[%clk
01:33:33]} {[%emt 00:00:06]} Nc6 {[%clk 01:32:09]} {[%emt 00:00:16]} 9. Nxc6
{[%clk 01:32:35]} {[%emt 00:01:29]} bxc6 {[%clk 01:32:34]} {[%emt 00:00:05]} 10.
e5 {[%clk 01:33:02]} {[%emt 00:00:03]} dxe5 {[%clk 01:32:59]} {[%emt 00:00:05]}
11. Qxd8 {[%clk 01:33:23]} {[%emt 00:00:09]} Rxd8 {[%clk 01:33:25]} {[%emt
00:00:04]} 12. Bxc6 {[%clk 01:33:48]} {[%emt 00:00:06]} Rb8 {[%clk 01:33:50]}
{[%emt 00:00:04]} 13. Rd1 {[%clk 01:34:12]} {[%emt 00:00:06]} Rxd1+ {[%clk
01:34:15]} {[%emt 00:00:05]} 14. Nxd1 {[%clk 01:34:36]} {[%emt 00:00:06]} Be6
{[%clk 01:34:41]} {[%emt 00:00:04]} 15. c3 {[%clk 01:32:10]} {[%emt 00:02:57]}
Rc8 {[%clk 01:35:05]} {[%emt 00:00:06]} 16. Ba4 {[%clk 01:27:28]} {[%emt
00:05:12]} Nd7 {[%clk 01:22:15]} {[%emt 00:13:18]} 17. Bb3 {[%clk 01:17:34]}
{[%emt 00:10:25]} Bg4 {[%clk 01:08:42]} {[%emt 00:14:03]} 18. Be3 {[%clk
01:13:36]} {[%emt 00:04:28]} a5 {[%clk 01:06:08]} {[%emt 00:03:04]} 19. Bd5
{[%clk 01:02:59]} {[%emt 00:11:07]} Nf6 {[%clk 00:55:16]} {[%emt 00:11:22]} 20.
Bg2 {[%clk 01:03:08]} {[%emt 00:00:22]} Rd8 {[%clk 00:51:24]} {[%emt 00:04:21]}
21. f3 {[%clk 01:03:25]} {[%emt 00:00:14]} Be6 {[%clk 00:51:14]} {[%emt
00:00:39]} 22. Bb6 {[%clk 00:53:32]} {[%emt 00:10:23]} Ra8 {[%clk 00:48:49]}
{[%emt 00:02:54]} 23. Bc5 {[%clk 00:50:36]} {[%emt 00:03:28]} Nd5 {[%clk
00:46:10]} {[%emt 00:03:08]} 24. Nf2 {[%clk 00:40:41]} {[%emt 00:10:24]} Rc8
{[%clk 00:36:18]} {[%emt 00:10:22]} 25. Ba3 {[%clk 00:40:12]} {[%emt 00:01:00]}
f6 {[%clk 00:32:47]} {[%emt 00:04:00]} 26. Re1 {[%clk 00:27:08]} {[%emt
00:13:35]} Bf7 {[%clk 00:29:58]} {[%emt 00:03:18]} 27. Ne4 {[%clk 00:23:23]}
{[%emt 00:04:16]} Bh6 {[%clk 00:26:41]} {[%emt 00:03:46]} 28. Kf2 {[%clk
00:23:38]} {[%emt 00:00:16]} Rc7 {[%clk 00:25:06]} {[%emt 00:02:04]} 29. Bf1
{[%clk 00:22:27]} {[%emt 00:01:41]} Kg7 {[%clk 00:22:15]} {[%emt 00:03:21]} 30.
h4 {[%clk 00:22:09]} {[%emt 00:00:48]} Nb6 {[%clk 00:19:01]} {[%emt 00:03:44]}
31. b3 {[%clk 00:21:41]} {[%emt 00:00:59]} Nd5 {[%clk 00:14:11]} {[%emt
00:05:20]} 32. Bc4 {[%clk 00:20:47]} {[%emt 00:01:24]} Nxc3 {[%clk 00:09:55]}
{[%emt 00:04:45]} 33. Nxc3 {[%clk 00:18:52]} {[%emt 00:02:25]} Bxc4 {[%clk
00:10:12]} {[%emt 00:00:13]} 34. bxc4 {[%clk 00:14:58]} {[%emt 00:04:25]} Bd2
{[%clk 00:09:58]} {[%emt 00:00:43]} 35. Ne4 {[%clk 00:14:49]} {[%emt 00:00:40]}
Bxe1+ {[%clk 00:10:16]} {[%emt 00:00:11]} 36. Kxe1 {[%clk 00:15:17]} {[%emt
00:00:03]} Rxc4 {[%clk 00:09:07]} {[%emt 00:01:39]} 37. Bxe7 {[%clk 00:15:35]}
{[%emt 00:00:12]} f5 {[%clk 00:08:39]} {[%emt 00:00:57]} 38. Bf6+ {[%clk
00:13:18]} {[%emt 00:02:47]} Kg8 {[%clk 00:07:53]} {[%emt 00:01:15]} 39. Nd2
{[%clk 00:13:44]} {[%emt 00:00:06]} Ra4 {[%clk 00:05:16]} {[%emt 00:03:06]} 40.
Bxe5 {[%clk 00:13:37]} {[%emt 00:00:37]} Rxa2 {[%clk 00:05:39]} {[%emt
00:00:08]} 41. Kd1 {[%clk 00:13:28]} {[%emt 00:00:39]} Ra3 {[%clk 00:30:08]}
{[%emt 00:06:00]} 42. Kc2 {[%clk 00:33:51]} {[%emt 00:10:07]} Re3 {[%clk
00:26:50]} {[%emt 00:03:47]} 43. Nc4 {[%clk 00:33:52]} {[%emt 00:00:29]} Rxf3
{[%clk 00:26:25]} {[%emt 00:00:56]} 44. Nxa5 {[%clk 00:34:17]} {[%emt
00:00:06]} h6 {[%clk 00:24:21]} {[%emt 00:02:33]} 45. Kd2 {[%clk 00:21:15]}
{[%emt 00:13:32]} g5 {[%clk 00:20:44]} {[%emt 00:04:06]} 46. hxg5 {[%clk
00:21:33]} {[%emt 00:00:13]} hxg5 {[%clk 00:21:04]} {[%emt 00:00:09]} 47. Ke2
{[%clk 00:21:41]} {[%emt 00:00:23]} Ra3 {[%clk 00:21:27]} {[%emt 00:00:07]} 48.
Nc4 {[%clk 00:22:05]} {[%emt 00:00:06]} Ra4 {[%clk 00:21:45]} {[%emt 00:00:12]}
49. Ne3 {[%clk 00:17:33]} {[%emt 00:05:02]} Re4 {[%clk 00:21:12]} {[%emt
00:01:03]} 50. Bf6 {[%clk 00:17:28]} {[%emt 00:00:35]} f4 {[%clk 00:21:37]}
{[%emt 00:00:05]} 51. gxf4 {[%clk 00:17:49]} {[%emt 00:00:09]} gxf4 {[%clk
00:22:02]} {[%emt 00:00:05]} 52. Kf3 {[%clk 00:18:11]} {[%emt 00:00:08]} Rxe3+
{[%clk 00:22:25]} {[%emt 00:00:07]} 53. Kxf4 {[%clk 00:18:39]} {[%emt
00:00:03]} Ra3 {[%clk 00:20:56]} {[%emt 00:01:59]} 54. Be5 {[%clk 00:18:11]}
{[%emt 00:00:58]} Kf7 {[%clk 00:21:21]} {[%emt 00:00:04]} 55. Kf5 {[%clk
00:18:18]} {[%emt 00:00:23]} Ra5 {[%clk 00:21:46]} {[%emt 00:00:05]} 56. Kf4
{[%clk 00:18:28]} {[%emt 00:00:20]} Ke6 {[%clk 00:22:11]} {[%emt 00:00:04]} 57.
Bg7 {[%clk 00:17:28]} {[%emt 00:01:30]} Rf5+ {[%clk 00:22:32]} {[%emt
00:00:09]} 58. Kg4 {[%clk 00:17:49]} {[%emt 00:00:09]} Rf1 {[%clk 00:22:53]}
{[%emt 00:00:09]} 59. Bc3 {[%clk 00:17:56]} {[%emt 00:00:23]} Rc1 {[%clk
00:22:59]} {[%emt 00:00:24]} 60. Bd2 {[%clk 00:17:01]} {[%emt 00:01:24]} Rc2
{[%clk 00:23:15]} {[%emt 00:00:14]} 61. Bf4 {[%clk 00:17:18]} {[%emt 00:00:13]}
Kf6 {[%clk 00:23:28]} {[%emt 00:00:17]} 62. Bd6 {[%clk 00:16:48]} {[%emt
00:01:01]} Rd2 {[%clk 00:23:02]} {[%emt 00:00:56]} 63. Bc7 {[%clk 00:17:04]}
{[%emt 00:00:14]} Rd3 {[%clk 00:21:57]} {[%emt 00:01:04]} 1/2-1/2